Cogmind - Beta 12 @@@ ROGUE MODE // 2023.05.12 @ 16:31:50 Player: Barleymor Result: Destroyed by G-47 Trooper with Particle Gun Performance ------------- Evolutions (2) 1000 Regions Visited (4) 800 Robots Destroyed (35) 175 Value Destroyed (1307) 1307 Prototype IDs (1) 20 Alien Tech Used (0) 0 Bonus (0) 0 TOTAL SCORE: 3302 Bonus ------- None Cogmind --------- Core Integrity 0/550 Matter 278/300 Energy 154/160 System Corruption 6% Temperature Cool (12) Movement Walking (120) Location -8/Materials Parts ------- > --- POWER (2) -------- Light Nuclear Core > --- PROPULSION (4) --- Aluminum Leg Carbon-fiber Leg Carbon-fiber Leg > --- UTILITY (3) ------ Large Storage Unit Improved Signal Interpreter > --- WEAPON (2) ------- Flak Cannon > --- INVENTORY (15) --- Improved Ion Engine Medium Matter Pod (100) Advanced Visual Processing Unit Rocket Launcher Improved Datajack Improved Datajack Peak State ------------ > --- POWER ------------ Light Nuclear Core Light Nuclear Core > --- PROPULSION ------- Aluminum Leg Carbon-fiber Leg Wheel > --- UTILITY ---------- Large Storage Unit Small Battery Improved Signal Interpreter > --- WEAPON ----------- Heavy Assault Rifle Flak Cannon > --- INVENTORY -------- Improved Ion Engine Medium Matter Pod Advanced Visual Processing Unit Rocket Launcher [Rating: 21] Favorites ----------- Power Ion Engine Engine Ion Engine Power Core Light Nuclear Core Propulsion Aluminum Leg Treads Advanced Treads Leg Aluminum Leg Wheel Compact Wheel Hover Unit Improved Hover Unit Utility Large Storage Unit Device Improved Terrain Scanner Storage Large Storage Unit Processor Improved Signal Interpreter Protection Light Armor Plating Weapon Medium Laser Energy Gun Medium Laser Ballistic Gun Assault Rifle Ballistic Cannon Flak Cannon Launcher Rocket Launcher Build | -11 -10 -10 -9 -8 ------- Run | Jun Mat Min Mat Mat Slots Evolved 4 | . . . 2 2 Power 1 | . . . 1 . Propulsion 2 | . . . 1 1 Utility 1 | . . . . 1 Weapon . | . . . . . Parts Attached 52 | 6 2 . 9 35 Power 8 | 1 . . 2 5 Engine 5 | 1 . . 2 2 Core 3 | . . . . 3 Reactor . | . . . . . Propulsion 17 | 2 . . 3 12 Treads 2 | . . . . 2 Leg 8 | . . . 3 5 Wheel 6 | 2 . . . 4 Hover 1 | . . . . 1 Flight . | . . . . . Utility 10 | 1 2 . 3 4 Device 2 | . . . . 2 Storage 5 | 1 1 . 2 1 Processor 1 | . . . . 1 Hackware . | . . . . . Protection 2 | . 1 . 1 . Artifact . | . . . . . Weapon 17 | 2 . . 1 14 Energy Gun 3 | 1 . . . 2 Energy Cannon . | . . . . . Ballistic Gun 8 | 1 . . 1 6 Ballistic Cannon 3 | . . . . 3 Launcher 3 | . . . . 3 Special Weapon . | . . . . . Impact Weapon . | . . . . . Slashing Weapon . | . . . . . Piercing Weapon . | . . . . . Special Melee Weapon . | . . . . . Unidentified Prototypes 1 | . . . . 1 Parts Lost 22 | . . . . 22 Power 3 | . . . . 3 Propulsion 11 | . . . . 11 Utility 4 | . . . . 4 Weapon 4 | . . . . 4 Highest Loss Streak 7 | . . . . 7 To Critical Strikes 1 | . . . . 1 Average Slot Usage (%) 81 | . 93 100 91 73 Engine 12 | . 14 14 19 9 Core 1 | . . . . 2 Treads 3 | . . . . 5 Leg 9 | . . . 18 9 Wheel 8 | . 28 28 9 2 Hover 1 | . . . . 2 Storage 14 | . 15 14 11 16 Processor 4 | . . . . 7 Protection 4 | . 7 14 11 1 Energy Gun 7 | . 14 14 11 4 Ballistic Gun 9 | . 14 14 10 8 Ballistic Cannon 1 | . . . . 2 Naked Turns . | . . . . . Heaviest Build 43 | 14 15 15 39 43 Greatest Support 40 | 32 32 32 32 40 Greatest Overweight (x) 8 | . . . 1 8 Average Overweight (x) . | . . . . 1 Largest Inventory Capacity 15 | 8 8 8 15 15 Average Capacity 13 | 6 8 8 13 15 Most Carried 7 | 3 5 6 7 6 Average Carried 3 | . 1 5 3 4 Final Capacity 15 | 8 8 8 15 15 Final Carried 6 | . 5 5 3 6 Class Distribution -------------------- 59% | Scavenger-Mutant 40% | Mutant Dominant Class ---------------- Mutant | -10/Materials Mutant | -10/Mines Scavenger-Mutant | -9/Materials Scavenger-Mutant | -8/Materials Resources | -11 -10 -10 -9 -8 ----------- Run | Jun Mat Min Mat Mat Matter Collected 1269 | 250 51 . 223 745 Remotely . | . . . . . Salvage Created 1330 | . 94 . 277 959 Parts 73 | . 5 . 13 55 Haulers Intercepted . | . . . . . Recyclers Shooed . | . . . . . Parts Field Recycled . | . . . . . Retrieved Matter . | . . . . . Parts Self-Destructed . | . . . . . Prevented . | . . . . . Kills | -11 -10 -10 -9 -8 ------- Run | Jun Mat Min Mat Mat Combat Hostiles Destroyed 31 | . 2 . 6 23 Guns 18 | . 2 . 5 11 Cannons 5 | . . . . 5 AOE 6 | . . . . 6 Classes Destroyed 8 | . 1 . 1 6 Builder 1 | . . . . 1 Recycler 1 | . . . . 1 Mechanic 1 | . . . . 1 Watcher 1 | . . . . 1 Swarmer 4 | . . . . 4 Grunt 19 | . 2 . 5 12 Sentry 6 | . . . 1 5 Hunter 2 | . . . . 2 Best Kill Streak 6 | . 1 . 3 6 Combat Bots Only 5 | . 1 . 3 5 Max Kills in Single Turn 3 | . 1 . 1 3 Gunslinging . | . . . . . Exploded 2 | . . . . 2 Melee . | . . . . . Uniques/NPCs Destroyed . | . . . . . Combat | -11 -10 -10 -9 -8 -------- Run | Jun Mat Min Mat Mat Damage Taken 3153 | . 35 . 247 2871 Core 644 | . 12 . 72 560 Absorbed by Shields . | . . . . . Regen/Repaired (Parts) 108 | . . . 108 . Core Remaining (%) 92 | 100 . 95 82 . Volleys Fired 124 | . 7 . 20 97 Largest 2 | . 2 . 2 2 Hottest 88 | . 70 . 70 88 Shots Fired 202 | . 14 . 31 157 Gun 160 | . 14 . 31 115 Cannon 36 | . . . . 36 Launcher 6 | . . . . 6 Special . | . . . . . Kinetic 134 | . 7 . 11 116 Thermal 62 | . 7 . 20 35 Explosive 6 | . . . . 6 Electromagnetic . | . . . . . Robot Hit Streak 21 | . 11 . 12 21 Robot Miss Streak 8 | . 2 . 1 8 Penetration Max . | . . . . . Secondary Targets . | . . . . . Shots Hit Robots 157 | . 11 . 25 121 Core Hits 102 | . 5 . 11 86 Critical Kills 1 | . . . . 1 Critical Parts Destroyed 1 | . . . . 1 Critical Strikes 13 | . 2 . 2 9 Burn 11 | . 2 . 2 7 Destroy 2 | . . . . 2 Melee Attacks . | . . . . . Impact . | . . . . . Slashing . | . . . . . Piercing . | . . . . . Sneak Attacks . | . . . . . Combat Hostiles . | . . . . . Follow-up Attacks . | . . . . . Damage Inflicted 2621 | . 150 . 319 2152 Guns 1590 | . 150 . 319 1121 Cannons 549 | . . . . 549 Explosions 482 | . . . . 482 Melee . | . . . . . Ramming . | . . . . . Kinetic 1422 | . 77 . 93 1252 Thermal 717 | . 73 . 226 418 Explosive 482 | . . . . 482 Electromagnetic . | . . . . . Impact . | . . . . . Slashing . | . . . . . Piercing . | . . . . . Highest Corruption 6 | . . . . 6 Average Corruption 5 | . . . . 5 Corruption Purged . | . . . . . Corruption Blocked . | . . . . . Effects 26 | . . . . 26 Message Errors 6 | . . . . 6 Matter Fused 5 | . . . . 5 Heat Flow Errors 2 | . . . . 2 Energy Discharges 2 | . . . . 2 Parts Rejected 1 | . . . . 1 Parts Fused 1 | . . . . 1 Data Loss (minor) 2 | . . . . 2 Data Loss (major) 1 | . . . . 1 Misfires 2 | . . . . 2 Alerts 1 | . . . . 1 Weapon Failures 3 | . . . . 3 Overload Shots . | . . . . . Overflow Damage . | . . . . . Projectiles . | . . . . . Explosions . | . . . . . Melee . | . . . . . Knockbacks 23 | . . . . 23 Impact . | . . . . . Kinetic 17 | . . . . 17 Secondary 6 | . . . . 6 Self-Inflicted Damage 46 | . . . . 46 Shots 2 | . . . . 2 Rammed . | . . . . . Targets Rammed . | . . . . . Kicked . | . . . . . Crushed . | . . . . . Highest Temperature 262 | . 39 . 262 243 Average Temperature 87 | . 13 . 122 82 Received Heat Transfer 1233 | . 18 . 117 1098 Effects 2 | . . . 1 1 Energy Bleed 2 | . . . 1 1 Siege Activations . | . . . . . Robots Corrupted . | . . . . . Combat Hostiles . | . . . . . Parts Fried . | . . . . . Impact Corruptions . | . . . . . Robots Melted 2 | . . . 1 1 Combat Hostiles 2 | . . . 1 1 Parts Melted 4 | . . . 2 2 Heat Transferred 2812 | . 370 . 814 1628 Parts Sabotaged . | . . . . . Parts Stolen . | . . . . . Parts Stripped . | . . . . . Power Chain Reactions . | . . . . . Missiles Intercepted . | . . . . . Alert | -11 -10 -10 -9 -8 ------- Run | Jun Mat Min Mat Mat Peak Influence 399 | . 65 25 157 399 Initial 27 | . . 25 9 27 Average 102 | . 18 25 87 131 Maximum Alert Level 1 | . . . . 1 Low Security (%) 83 | 100 100 100 100 73 Level 1 16 | . . . . 26 Level 2 . | . . . . . Level 3 . | . . . . . Level 4 . | . . . . . Level 5 . | . . . . . High Security . | . . . . . Max Security . | . . . . . Squads Dispatched 8 | . 1 . 3 4 Investigation 2 | . . . 2 . Extermination . | . . . . . Reinforcement 4 | . 1 . 1 2 Assault 1 | . . . . 1 Garrison 1 | . . . . 1 Intercept . | . . . . . Searches Triggered . | . . . . . Construction Impeded . | . . . . . Haulers Reinforced . | . . . . . Active Scanning Responses . | . . . . . Cargo Convoy Interrupts . | . . . . . Stealth | -11 -10 -10 -9 -8 --------- Run | Jun Mat Min Mat Mat Distress Signals . | . . . . . Communications Jammed . | . . . . . Distress Signals . | . . . . . Times Spotted 52 | . 3 . 11 38 Peak Tracking Total 5 | . 2 . 3 5 Tactical Retreats 2 | . . . . 2 Traps | -11 -10 -10 -9 -8 ------- Run | Jun Mat Min Mat Mat Traps Triggered 2 | . . . 1 1 Indirectly . | . . . . . Trap Hack Attempts . | . . . . . Triggered . | . . . . . Disarmed . | . . . . . Reprogrammed . | . . . . . Reused . | . . . . . Traps Extracted . | . . . . . Installed . | . . . . . Triggered . | . . . . . Machines | -11 -10 -10 -9 -8 ---------- Run | Jun Mat Min Mat Mat Machines Disabled 3 | . . . . 3 Max in Single Turn 1 | . . . . 1 Garrison Access 1 | . . . . 1 Machines Repaired . | . . . . . Machines Sabotaged . | . . . . . Overloaded Fab Kills . | . . . . . Hacking | -11 -10 -10 -9 -8 --------- Run | Jun Mat Min Mat Mat Machines Accessed 3 | . . . 2 1 Terminals 2 | . . . 1 1 Fabricators . | . . . . . Repair Stations 1 | . . . 1 . Recycling Units . | . . . . . Scanalyzers . | . . . . . Garrison Access . | . . . . . Total Hacks 8 | . . . 6 2 Successful 5 | . . . 5 . Failed 3 | . . . 1 2 Catastrophic . | . . . . . Database Lockouts . | . . . . . Manual . | . . . . . Terminals 3 | . . . 1 2 Fabricators . | . . . . . Repair Stations 5 | . . . 5 . Recycling Units . | . . . . . Scanalyzers . | . . . . . Garrison Access . | . . . . . Terminal Hacks 1 | . . . 1 . Zone Layout 1 | . . . 1 . Fabricator Hacks . | . . . . . Repair Station Hacks 4 | . . . 4 . Scan Component 2 | . . . 2 . Repair 2 | . . . 2 . Recycling Unit Hacks . | . . . . . Scanalyzer . | . . . . . Garrison Access Hacks . | . . . . . Unauthorized Hacks . | . . . . . Terminals . | . . . . . Fabricators . | . . . . . Repair Stations . | . . . . . Recycling Units . | . . . . . Scanalyzers . | . . . . . Garrison Access . | . . . . . Data Cores Recovered . | . . . . . Used . | . . . . . Hacking Detections 2 | . . . 2 . Full Trace Events 1 | . . . 1 . Feedback Events . | . . . . . Feedback Blocked . | . . . . . Robot Schematics Acquired . | . . . . . Robots Built . | . . . . . Authchips . | . . . . . Time . | . . . . . Total Robot Build Rating . | . . . . . Part Schematics Acquired . | . . . . . Parts Built . | . . . . . Authchips . | . . . . . Time . | . . . . . Total Part Build Rating . | . . . . . Parts Repaired 2 | . . . 2 . Time 58 | . . . 58 . Parts Recycled . | . . . . . Recycled Matter . | . . . . . Retrieved Matter . | . . . . . Retrieved Components . | . . . . . Parts Scanalyzed . | . . . . . Part Schematics Acquired . | . . . . . Parts Damaged . | . . . . . Bothacking | -11 -10 -10 -9 -8 ------------ Run | Jun Mat Min Mat Mat Used RIF Installer . | . . . . . Robots Hacked . | . . . . . Non-combat . | . . . . . Combat . | . . . . . Robot Hacks Applied . | . . . . . Relay Couplers Released 3 | . . . . 3 Machine Destruction 3 | . . . . 3 Fabnet Peak Effective % . | . . . . . Robots Rewired . | . . . . . Allies Hacked . | . . . . . Hacks Repelled . | . . . . . Allies | -11 -10 -10 -9 -8 -------- Run | Jun Mat Min Mat Mat Total Allies . | . . . . . Largest Group . | . . . . . Highest-Rated Group . | . . . . . Highest-Rated Ally . | . . . . . Total Orders . | . . . . . Ally Attacks . | . . . . . Total Damage . | . . . . . Kills . | . . . . . Allies Corrupted . | . . . . . Allies Melted . | . . . . . Intel | -11 -10 -10 -9 -8 ------- Run | Jun Mat Min Mat Mat Robot Analysis Total . | . . . . . Derelict Logs Recovered 1 | . . 1 . . Drone Launches . | . . . . . Drone Recoveries . | . . . . . Exploration | -11 -10 -10 -9 -8 ------------- Run | Jun Mat Min Mat Mat Turns Passed 2226 | 45 222 117 490 1352 Spaces Moved 1035 | 38 149 116 225 507 Core 10 | 9 . . . 1 Treads 142 | . . . . 142 Legs 298 | . . . 106 192 Wheels 569 | 29 149 116 119 156 Hover 16 | . . . . 16 Flight . | . . . . . Fastest Speed 50 | 50 100 100 100 110 Average Speed 147 | 88 100 100 145 176 Slowest Speed 450 | 100 100 100 190 450 Overloaded Moves . | . . . . . Propulsion Burnouts . | . . . . . Robots Hopped . | . . . . . Cave-ins Triggered . | . . . . . Exploration Rate (%) 26 | 4 27 41 19 40 Regions Visited 4 Branch Regions 1 Pre-discovered Areas . | . . . . . Known Exits Taken . | . . . . . Unknown Exits Taken 4 | 1 1 1 1 . Scrap Searched . | . . . . . Spaces Dug 8 | . . . . 8 Terrain Destroyed 43 | . . . . 43 Melee . | . . . . . Projectile . | . . . . . AOE 43 | . . . . 43 Terrain Rammed . | . . . . . Walls Destroyed . | . . . . . Machines Disabled . | . . . . . Actions | -11 -10 -10 -9 -8 --------- Run | Jun Mat Min Mat Mat Total 1531 | 49 207 117 358 800 Wait 275 | . 44 . 92 139 Move 1031 | 37 148 115 224 507 Hop . | . . . . . Pick Up 33 | 6 6 1 5 15 Fast Attach 18 | . . . 4 14 Attach 18 | 6 1 . 1 10 Detach . | . . . . . Swap 16 | . 1 . 4 11 Drop 16 | . . 1 8 7 Fire 124 | . 7 . 20 97 Melee . | . . . . . Ram . | . . . . . Kick . | . . . . . Crush . | . . . . . Escape Stasis . | . . . . . Rewire . | . . . . . Trap . | . . . . . Miscellaneous . | . . . . . Route ------- -11/Junkyard -10/Materials -10/Mines -9/Materials -8/Materials History --------- Turn | Location | Event 5 | -11/Junkyard | Discovered new exit (range 16) 46 | -11/Junkyard | Entered Materials 250 | -10/Materials | Discovered new exit (range 7) 268 | -10/Materials | Entered Mines 276 | -10/Mines | Learned Materials security intel 313 | -10/Mines | Build established: Mutant 317 | -10/Mines | Received a Rocket Launcher from a helpful Derelict 356 | -10/Mines | Discovered new exit (range 15) 385 | -10/Mines | Entered Materials 385 | -9/Materials | Evolved 2 slots: Power x1, Propulsion x1 743 | -9/Materials | Discovered new exit (range 11) 807 | -9/Materials | Repaired Imp. Ion Engine 834 | -9/Materials | Repaired Assault Rifle 875 | -9/Materials | Entered another Materials area 875 | -8/Materials | Evolved 2 slots: Propulsion x1, Utility x1 885 | -8/Materials | Build established: Scavenger-Mutant 1117 | -8/Materials | Lost 7 parts (3n3u1w) 1391 | -8/Materials | Lost 4 parts (1p2n1w) 1498 | -8/Materials | Core integrity fell below 50% 1934 | -8/Materials | Garrison activated, responded to threat 1951 | -8/Materials | Core integrity fell below 20% 1989 | -8/Materials | Lost 3 parts (1p2n) 2181 | -8/Materials | Lost 4 parts (1p1n1u1w) 2227 | -8/Materials | Destroyed by G-47 Trooper with Particle Gun Last Messages --------------- 02140_ K-01 Serf destroyed. 02141_ Penetrated by Slug. 02141_ K-01 Serf destroyed. 02143_ K-01 Serf collects debris. 02144_ Penetrated by Slug. 02145_ Lgt. Nuclear Core destroyed. 02146_ Acquired 17 matter. 02147_ Penetrated by Slug. 02150_ Slug penetrates Wall. 02150_ Sml. Battery destroyed. 02153_ Slug penetrates Wall. 02153_ H-55 Commando destroyed. 02155_ Acquired 13 matter. 02159_ Critical hit (Burn: +37). 02159_ Acquired Carbon-fiber Leg. 02160_ K-01 Serf collects debris. 02181_ Acquired Imp. Datajack. 02189_ System corrupted: FCS attempts to trigger Flak Cannon. 02189_ System corrupted: Flak Cannon misfires. 02207_ System corrupted: Matter fused (-6). Map ----- +----------------------------------------------------+ | ????????????????????????????????????? | | ????????????????????????????????????? | | ????????????????????????????????????? | | ??????????#?????????????????????????? | | ????????? +?????????????????????????? | | ???????? #?????????????????????????? | | ??????? #?????????????????????????? | | ??????# ##???????????####?????????? | | ###### ???????????? ?????????? | | T ???????????? ?????????? | | "" +??????????? ?????????? | | #??????????? ?????????? | | ###[????????????????# u#?????????? | | #???????????????????#g #?????????? | | #???????????????????#g #?????????? | | #???????????????????# b####??????? | | #????????????######## !##?????? | | #????????????# # !#?????? | | ############## # !#?????? | | + """ + !#?????? | | ############## """ # !#?????? | | #????????????# """ # !##?????? | | +###????????????# [# ####??????? | | ????????????????######## #?????????? | | ???????????????????????#k #?????????? | | ???????????????????????# @#?????????? | | ???????????????????????# #?????????? | | ???????????????????????+ ?????????? | | ???????????????????????# ?????????? | | ???????????????????????# ##????????? | | ???????????????????????# #?????????? | | ???????????????????????# +?????????? | | ??????????????????????? #?????????? | | ??????????????????????? #?????????? | | ???????????????????????####?????????? | | ????????????????????????????????????? | | ????????????????????????????????????? | | ????????????????????????????????????? | | ????????????????????????????????????? | | ????????????????????????????????????? | | ????????????????????????????????????? | | ????????????????????????????????????? | | ????????????????????????????????????? | | | | | | | | | | | | | | | +----------------------------------------------------+ Best States ------------- Heat Dissipation 31 Energy Generation 23 Energy Capacity 515 Matter Stores 300 Matter Capacity 300 Sight Range 16 Robot Scan Range 15 Terrain Scan Range 16 Terrain Scan Density 10 Armor Coverage 150 Utility Shielding 33 Evasion (%) 55 Recoil Reduction 1 Item Schematics ----------------- None Robot Schematics ------------------ None Fabricated ------------ Nothing Alien Tech Used ----------------- None Achievements -------------- More Dakka Please Challenges ------------ None Game ------ Seed KineticSchematicProjector Manual? 0 Play Time 00:36:57 Cumulative 26.1 hours Start 2023.05.12 @ 02:12:17 End 2023.05.12 @ 16:31:50 Sessions 2 Manual Loads 0 Difficulty Rogue Special Mode None Game No. 22 Rogue 22 Adventurer 0 Explorer 0 Win Type - Total 0 Types 0/0/0/0/0/0/0/0/0 Lore% 5 Gallery% 24 Achievement% 20 Wizard Run 0 Options --------- ASCII 0 Keyboard 0 Movement Numpad Keybinds 0 Fullscreen 1 Font 18/SmallcapsGlow Map View 76x50 Tactical HUD 1 Map Filters NONE Filters NONE Steam 1 RUN: 6f4854ba-728b-4b15-94c3-ffe1c4ec910b